bitfinex-derivatives/quotes_BNBF0:USTF0_20250708
["timestamp","ask_amount","ask_price","bid_price","bid_amount"]
[1751938181542,1.02875624,660.81,660.36,1.48]
[1751938181741,1.02875624,660.8,660.36,1.48]
[1751938181944,1.02875624,660.83,660.36,1.48]
[1751938182145,1.68869131,660.79,660.36,1.48]
[1751938182342,1.68869131,660.8,660.36,1.48]
[1751938182540,2.71744755,660.8,660.36,1.48]
[1751938182743,1.02875624,660.79,660.36,1.48]
[1751938182942,1.02875624,660.78,660.36,1.48]
[1751938183143,1.02875624,660.77,660.36,1.48]
[1751938183341,1.02875624,660.76,660.36,1.48]
[1751938183541,1.02875624,660.79,660.36,1.48]
[1751938183741,1.02875624,660.78,660.36,1.48]
[1751938183946,1.02875624,660.79,660.36,1.48]
[1751938184147,1.02875624,660.82,660.36,1.48]
[1751938184346,1.02875624,660.81,660.36,1.48]
[1751938184542,1.02875624,660.8,660.36,1.48]
[1751938184843,2.78398768,660.82,660.36,1.48]
[1751938185041,1.02875624,660.81,660.36,1.48]
[1751938185443,1.02875624,660.82,660.36,1.48]
[1751938185646,1.02875624,660.81,660.36,1.48]
[1751938185843,1.02875624,660.83,660.36,1.48]
[1751938186143,1.02875624,660.82,660.36,1.48]
[1751938186443,1.02828645,660.81,660.36,1.48]
[1751938186646,1.02828645,660.8,660.36,1.48]
[1751938186847,1.02828645,660.79,660.36,1.48]
[1751938187049,1.02828645,660.8,660.36,1.48]
[1751938187447,1.02828645,660.79,660.36,1.48]
[1751938187652,1.68869131,660.76,660.36,1.48]
[1751938187849,1.02798746,660.75,660.36,1.48]
[1751938188552,1.68869131,660.76,660.36,1.48]
[1751938188753,1.68869131,660.76,660.21,0.26342084]
[1751938189456,1.68869131,660.77,660.21,0.26342084]
[1751938189652,2.23979801,660.89,660.21,0.26342084]
[1751938189653,1.68869131,660.76,660.21,0.26342084]
[1751938190053,2.23979801,660.89,660.21,0.26342084]
[1751938190253,1.68928059,660.76,660.21,0.26342084]
[1751938190455,1.68928059,660.77,660.21,0.26342084]
[1751938192155,1.68928059,660.77,660.22,1.332]
[1751938192454,1.68928059,660.78,660.22,1.332]
[1751938195361,1.68928059,660.79,660.22,1.332]
[1751938195656,1.02756409,660.78,660.22,1.332]
[1751938195857,1.02756409,660.77,660.22,1.332]
[1751938196160,1.02756409,660.78,660.22,1.332]
[1751938196360,1.02756409,660.77,660.22,1.332]
[1751938196560,1.02756409,660.78,660.22,1.332]
[1751938196857,1.68928059,660.79,660.22,1.332]
[1751938196858,1.02756409,660.77,660.22,1.332]
[1751938197057,1.68928059,660.79,660.22,1.332]
[1751938197462,1.02756409,660.78,660.22,1.332]
[1751938198062,1.68928059,660.79,660.22,1.332]
[1751938199462,1.68928059,660.77,660.22,1.332]
[1751938202263,1.68928059,660.78,660.22,1.332]
[1751938206264,1.68928059,660.79,660.22,1.332]
[1751938206665,1.68928059,660.78,660.22,1.332]
[1751938207465,1.68928059,660.79,660.22,1.332]
[1751938209171,1.68928059,660.78,660.22,1.332]
[1751938209465,1.68928059,660.79,660.22,1.332]
[1751938210468,1.68928059,660.78,660.22,1.332]
[1751938210866,1.68928059,660.79,660.22,1.332]
[1751938212872,4.46770455,660.79,660.22,1.332]
[1751938213172,2.77842396,660.78,660.22,1.332]
[1751938213373,0.47186339,660.78,660.22,1.332]
[1751938213569,1.68928059,660.79,660.22,1.332]
[1751938215974,1.68928059,660.8,660.22,1.332]
[1751938218276,1.68928059,660.81,660.22,1.332]
[1751938219980,0.47186339,660.81,660.22,1.332]
[1751938220178,1.68928059,660.83,660.22,1.332]
[1751938222181,2.16114398,660.83,660.22,1.332]
[1751938222379,1.68928059,660.83,660.22,1.332]
[1751938223678,0.26345474,660.79,660.22,1.332]
[1751938227284,0.26345474,660.79,660.14,0.26345973]
[1751938228381,1.95273533,660.79,660.14,0.26345973]
[1751938228784,1.68928059,660.74,660.14,0.26345973]
[1751938229382,1.68928059,660.73,660.14,0.26345973]
[1751938229783,1.68928059,660.72,660.14,0.26345973]
[1751938230381,1.68928059,660.72,660.15,1.196]
[1751938232087,0.26345474,660.79,660.15,1.196]
[1751938232088,1.68928059,660.71,660.15,1.196]
[1751938232489,1.68928059,660.7,660.15,1.196]
[1751938233486,1.68928059,660.69,660.15,1.196]
[1751938235787,1.68928059,660.71,660.15,1.196]
[1751938236587,1.68928059,660.7,660.15,1.196]
[1751938238096,1.68851133,660.7,660.15,1.196]
[1751938239594,1.68851133,660.69,660.15,1.196]
[1751938240396,1.68851133,660.7,660.15,1.196]
[1751938241494,1.68851133,660.71,660.15,1.196]
[1751938241699,1.68851133,660.67,660.15,1.196]
[1751938241895,1.68851133,660.64,660.15,1.196]
[1751938242094,1.68851133,660.63,660.15,1.196]
[1751938242495,1.68851133,660.59,660.15,1.196]
[1751938242699,1.68851133,660.57,660.15,1.196]
[1751938243400,1.68851133,660.58,660.15,1.196]
[1751938243700,1.68851133,660.57,660.15,1.196]
[1751938244398,1.02728724,660.63,660.15,1.196]
[1751938244599,1.68851133,660.6,660.15,1.196]
[1751938245001,1.68851133,660.58,660.15,1.196]
[1751938245301,1.68851133,660.59,660.15,1.196]
[1751938246397,2.16095503,660.59,660.15,1.196]
[1751938246598,1.68851133,660.59,660.15,1.196]
[1751938247000,1.68851133,660.58,660.15,1.196]
[1751938247297,1.68851133,660.59,660.15,1.196]
[1751938248303,1.68851133,660.6,660.15,1.196]
[1751938249204,1.68851133,660.59,660.15,1.196]
[1751938249402,1.68851133,660.6,660.15,1.196]
[1751938251303,1.68851133,660.61,660.15,1.196]
[1751938252203,1.68851133,660.62,660.15,1.196]
[1751938253107,1.68851133,660.6,660.15,1.196]
[1751938253704,1.68851133,660.59,660.15,1.196]
[1751938254004,1.68851133,660.56,660.15,1.196]
[1751938254204,1.68851133,660.57,660.15,1.196]
[1751938254608,1.68851133,660.58,660.15,1.196]
[1751938255508,1.68851133,660.59,660.15,1.196]
[1751938256508,1.68851133,660.58,660.15,1.196]
[1751938259108,1.68851133,660.62,660.15,1.196]
[1751938260114,3.43808504,660.62,660.15,1.196]
[1751938260311,1.68851133,660.62,660.15,1.196]
[1751938264518,1.68851133,660.61,660.15,1.196]
[1751938266417,1.68851133,660.64,660.15,1.196]
[1751938269021,0.4712284,660.81,660.15,1.196]
[1751938269022,1.68851133,660.62,660.15,1.196]
[1751938269418,1.68851133,660.63,660.15,1.196]
[1751938273926,1.68851133,660.6,660.15,1.196]
[1751938274932,1.68851133,660.61,660.15,1.196]
[1751938276230,1.68851133,660.59,660.15,1.196]
[1751938276529,1.68851133,660.59,659.91,0.26353055]
[1751938277130,1.68851133,660.58,659.91,0.26353055]
[1751938277833,1.68851133,660.57,659.91,0.26353055]
[1751938278634,1.68851133,660.58,659.91,0.26353055]
[1751938278837,1.68851133,660.55,659.92,1.45]
[1751938279038,1.68851133,660.54,659.92,1.45]
[1751938279440,1.68851133,660.53,659.92,1.45]
[1751938280135,1.68851133,660.54,659.92,1.45]
[1751938280334,1.68851133,660.53,659.92,1.45]
[1751938283539,1.68851133,660.52,659.92,1.45]
[1751938285338,1.68851133,660.51,659.92,1.45]
[1751938285545,1.68851133,660.52,659.92,1.45]
[1751938285743,1.68851133,660.54,659.92,1.45]
[1751938286044,1.02444815,660.53,659.92,1.45]
[1751938286444,1.68851133,660.49,659.92,1.45]
[1751938286842,1.68851133,660.44,659.92,1.45]
[1751938291449,1.68851133,660.4,659.92,1.45]
[1751938291847,1.68851133,660.38,659.92,1.45]
[1751938292351,1.68851133,660.37,659.92,1.45]
[1751938293246,1.68851133,660.38,659.92,1.45]
[1751938293451,1.68851133,660.37,659.92,1.45]
[1751938296652,1.68851133,660.36,659.92,1.45]
[1751938297552,2.77321034,660.42,659.92,1.45]
[1751938297752,2.77321034,660.43,659.92,1.45]
[1751938297957,2.77321034,660.47,659.92,1.45]
[1751938298157,1.49566521,660.47,659.92,1.45]
[1751938298451,1.68851133,660.48,659.92,1.45]
[1751938299157,1.68851133,660.47,659.92,1.45]
[1751938304164,1.68851133,660.5,659.92,1.45]
[1751938304364,3.18422004,660.5,659.92,1.45]
[1751938304561,1.68851133,660.5,659.92,1.45]
[1751938304759,1.68851133,660.51,659.92,1.45]
[1751938304966,1.68851133,660.57,659.92,1.45]
[1751938305261,1.68851133,660.5,659.92,1.45]
[1751938313764,1.68851133,660.43,659.92,1.45]
[1751938314771,1.68851133,660.4,659.92,1.45]
[1751938314969,1.68851133,660.4,659.68,0.26360341]
[1751938318472,1.68851133,660.4,659.69,1.632]
[1751938319272,1.68851133,660.39,659.69,1.632]
[1751938320068,1.68851133,660.38,659.69,1.632]
[1751938320769,1.68851133,660.36,659.69,1.632]
[1751938321776,1.68851133,660.41,659.69,1.632]
[1751938324175,1.68851133,660.4,659.69,1.632]
[1751938324375,1.68851133,660.41,659.69,1.632]
[1751938324676,1.68851133,660.44,659.69,1.632]
[1751938327174,1.68851133,660.43,659.69,1.632]
[1751938328176,1.68851133,660.41,659.69,1.632]
[1751938328778,1.68851133,660.42,659.69,1.632]
[1751938329278,1.68851133,660.41,659.69,1.632]
[1751938331276,1.68851133,660.4,659.69,1.632]
[1751938331477,1.68851133,660.39,659.69,3.87946194]
[1751938332081,0.4720143,660.49,659.7,2.24746194]
[1751938332082,1.68851133,660.38,659.7,2.24746194]
[1751938332576,1.68851133,660.38,659.69,3.87946194]
[1751938332978,1.68851133,660.38,659.7,2.24746194]
[1751938334183,1.68851133,660.37,659.71,2.24746194]
[1751938335182,1.02477643,660.45,659.71,2.24746194]
[1751938335384,1.68821932,660.37,659.72,2.24746194]
[1751938335780,1.68821932,660.37,659.69,1.632]
[1751938335781,1.68821932,660.38,659.69,1.632]
[1751938337184,1.68821932,660.37,659.69,3.87946194]
[1751938338083,2.16023362,660.37,659.7,2.24746194]
[1751938338381,1.68821932,660.37,659.7,2.24746194]
[1751938338584,1.68821932,660.36,659.7,2.24746194]
[1751938339084,1.68821932,660.36,659.71,2.24746194]
[1751938339584,1.68821932,660.37,659.69,1.632]
[1751938340783,2.71299575,660.37,659.69,1.632]
[1751938340982,1.68821932,660.37,659.69,1.632]
[1751938341281,1.02477643,660.36,659.69,1.632]
[1751938343184,1.02477643,660.35,659.69,1.632]
[1751938343486,1.02477643,660.36,659.69,1.632]
[1751938343687,1.02477643,660.35,659.69,1.632]
[1751938343886,1.02477643,660.36,659.69,1.632]
[1751938344085,1.02477643,660.35,659.69,1.632]
[1751938344285,1.02477643,660.34,659.69,1.632]
[1751938344486,1.02477643,660.36,659.69,1.632]
[1751938344685,1.02477643,660.35,659.69,3.87946194]
[1751938344888,1.02477643,660.37,659.69,3.87946194]
[1751938345085,1.02477643,660.36,659.69,3.87946194]
[1751938345288,1.02477643,660.37,659.69,3.87946194]
[1751938345488,1.02477643,660.36,659.71,2.24746194]
[1751938345686,1.02477643,660.35,659.71,2.24746194]
[1751938345889,1.02477643,660.36,659.71,2.24746194]
[1751938346091,1.02477643,660.35,659.71,2.24746194]
[1751938346289,1.02477643,660.36,659.71,2.24746194]
[1751938346491,1.02477643,660.35,659.71,2.24746194]
[1751938346691,1.02763094,660.36,659.71,2.24746194]
[1751938346991,1.02763094,660.35,659.71,2.24746194]
[1751938347191,1.02763094,660.36,659.71,2.24746194]
[1751938347388,1.02763094,660.35,659.7,2.24746194]
[1751938347590,1.02763094,660.36,659.7,2.24746194]
[1751938347791,1.02763094,660.35,659.71,2.24746194]
[1751938347987,1.02763094,660.36,659.71,2.24746194]
[1751938348190,1.02763094,660.35,659.71,2.24746194]
[1751938348388,1.02763094,660.36,659.71,2.24746194]
[1751938348591,1.02763094,660.35,659.71,2.24746194]
[1751938348887,1.68821932,660.37,659.71,2.24746194]
[1751938349091,1.0275947,660.36,659.71,2.24746194]
[1751938349291,1.0275947,660.35,659.7,2.24746194]
[1751938349493,1.0275947,660.34,659.72,2.24746194]
[1751938349693,1.0275947,660.35,659.73,2.24746194]
[1751938349889,1.68821932,660.36,659.73,2.24746194]
[1751938349890,1.0275947,660.34,659.73,2.24746194]
[1751938350091,1.0275947,660.35,659.73,2.24746194]
[1751938350294,1.0275947,660.34,659.72,2.24746194]
[1751938350492,1.0275947,660.33,659.72,2.24746194]
[1751938350694,1.0275947,660.34,659.74,2.24746194]
[1751938350895,1.0275947,660.33,659.74,2.24746194]
[1751938351189,1.0275947,660.34,659.74,2.24746194]
[1751938351394,1.0275947,660.33,659.74,2.24746194]
[1751938351594,1.0275947,660.34,659.74,2.24746194]
[1751938351794,1.0275947,660.33,659.74,2.24746194]
[1751938351994,1.02761901,660.32,659.74,2.24746194]
[1751938352192,1.02761901,660.33,659.75,2.24746194]
[1751938352396,1.02761901,660.32,659.75,2.24746194]
[1751938352593,1.02761901,660.33,659.75,2.24746194]
[1751938352794,1.02761901,660.32,659.75,2.24746194]
[1751938352999,1.68821932,660.34,659.75,2.24746194]
[1751938353196,1.02763372,660.33,659.75,2.24746194]
[1751938353397,1.02763372,660.32,659.75,2.24746194]
[1751938353597,1.02763372,660.32,659.69,1.632]
[1751938353598,1.02763372,660.33,659.74,2.24746194]
[1751938354194,1.02763372,660.32,659.74,2.24746194]
[1751938354498,1.02763372,660.33,659.74,2.24746194]
[1751938354700,1.02763372,660.32,659.75,2.24746194]
[1751938354994,1.02763372,660.33,659.75,2.24746194]
[1751938355193,1.02763372,660.32,659.75,2.24746194]
[1751938355396,1.02763372,660.33,659.75,2.24746194]
[1751938355598,1.02763372,660.32,659.75,2.24746194]
[1751938355800,1.02763372,660.33,659.75,2.24746194]
[1751938355996,1.02769889,660.32,659.75,2.24746194]
[1751938356300,1.02769889,660.33,659.75,2.24746194]
[1751938356493,1.02769889,660.32,659.74,2.24746194]
[1751938356696,1.02769889,660.33,659.75,2.24746194]
[1751938356896,1.02769889,660.32,659.75,2.24746194]
[1751938357196,1.02769889,660.33,659.73,2.24746194]
[1751938357394,1.02769889,660.32,659.73,2.24746194]
[1751938357598,1.02769889,660.33,659.73,2.24746194]
[1751938357798,1.02769889,660.32,659.73,2.24746194]
[1751938357997,1.02769889,660.33,659.73,2.24746194]
[1751938358301,1.02769889,660.32,659.74,2.24746194]
[1751938358601,2.78091422,660.33,659.74,2.24746194]
[1751938358800,1.02775742,660.32,659.74,2.24746194]
[1751938359202,1.02775742,660.33,659.74,2.24746194]
[1751938359398,1.02775742,660.32,659.74,2.24746194]
[1751938359701,1.02775742,660.33,659.74,2.24746194]
[1751938359901,1.02775742,660.32,659.74,2.24746194]
[1751938360101,1.02775742,660.33,659.74,2.24746194]
[1751938360302,1.02775742,660.32,659.74,2.24746194]
[1751938360506,1.02775742,660.33,659.74,2.24746194]
[1751938360706,1.02775742,660.32,659.74,2.24746194]
[1751938360904,1.02775742,660.33,659.74,2.24746194]
[1751938361105,1.02775742,660.32,659.74,2.24746194]
[1751938361304,1.02775742,660.33,659.74,2.24746194]
[1751938361504,1.02775742,660.32,659.74,2.24746194]
[1751938361802,1.02775742,660.33,659.74,2.24746194]
[1751938362006,1.02775742,660.32,659.74,2.24746194]
[1751938362204,1.02775742,660.33,659.74,2.24746194]
[1751938362407,1.02775742,660.32,659.74,2.24746194]
[1751938362607,1.02775742,660.33,659.74,2.24746194]
[1751938362807,1.02775742,660.32,659.74,2.24746194]
[1751938363004,1.02775742,660.33,659.74,2.24746194]
[1751938363205,1.02775742,660.32,659.74,2.24746194]
[1751938363405,1.02775742,660.33,659.74,2.24746194]
[1751938363606,1.02775742,660.32,659.76,2.24746194]
[1751938363908,1.02775742,660.31,659.76,2.24746194]
[1751938364208,1.02775742,660.32,659.76,2.24746194]
[1751938364405,1.02775742,660.31,659.76,2.24746194]
[1751938364709,1.02775742,660.32,659.76,2.24746194]
[1751938364909,1.02775742,660.31,659.76,2.24746194]
[1751938365204,1.02775742,660.32,659.76,2.24746194]
[1751938365405,1.02775742,660.31,659.76,2.24746194]
[1751938365604,1.69048607,660.33,659.76,2.24746194]
[1751938365806,1.69048607,660.35,659.72,2.24746194]
[1751938366004,1.02775742,660.34,659.72,2.24746194]
[1751938366209,1.02775742,660.33,659.72,2.24746194]
[1751938366509,1.02775742,660.34,659.72,2.24746194]
[1751938366810,1.02775742,660.33,659.72,2.24746194]
[1751938367010,1.02775742,660.32,659.72,2.24746194]
[1751938367205,2.71824349,660.34,659.74,2.24746194]
[1751938367408,1.02775742,660.33,659.74,2.24746194]
[1751938367611,1.02761248,660.32,659.74,2.24746194]
[1751938367910,1.02761248,660.33,659.74,2.24746194]
[1751938368114,1.02761248,660.32,659.74,2.24746194]
[1751938368310,1.02761248,660.33,659.74,2.24746194]
[1751938368510,1.02761248,660.32,659.74,2.24746194]
[1751938368712,1.02761248,660.33,659.74,2.24746194]
[1751938369012,1.02761248,660.32,659.74,2.24746194]
[1751938369211,1.02761248,660.33,659.72,2.24746194]
[1751938369513,1.02761248,660.34,659.72,2.24746194]
[1751938369716,1.02761248,660.33,659.72,2.24746194]
[1751938370012,1.02761248,660.34,659.72,2.24746194]
[1751938370316,1.02761248,660.33,659.72,2.24746194]
[1751938370512,1.02761248,660.34,659.72,2.24746194]
[1751938370715,1.02761248,660.33,659.72,2.24746194]
[1751938370915,1.02761248,660.34,659.72,2.24746194]
[1751938371115,1.02761248,660.33,659.72,2.24746194]
[1751938371316,1.02761248,660.32,659.72,2.24746194]
[1751938371516,1.02761248,660.34,659.69,3.87946194]
[1751938371712,1.02761248,660.33,659.69,3.87946194]
[1751938371917,1.02761248,660.35,659.69,3.87946194]
[1751938372118,1.02761248,660.34,659.69,3.87946194]
[1751938372318,1.02761248,660.33,659.69,3.87946194]
[1751938372518,1.02761248,660.35,659.69,3.87946194]
[1751938372715,1.02761248,660.34,659.69,3.87946194]
[1751938373014,1.02761248,660.33,659.69,3.87946194]
[1751938373319,2.71753377,660.35,659.7,2.24746194]
[1751938373515,1.02739684,660.34,659.7,2.24746194]
[1751938373719,1.02739684,660.33,659.7,2.24746194]
[1751938374015,1.68992129,660.35,659.7,2.24746194]
[1751938374016,1.02739684,660.34,659.7,2.24746194]
[1751938374217,1.02739684,660.33,659.7,2.24746194]
[1751938374417,1.02739684,660.32,659.7,2.24746194]
[1751938374621,1.02739684,660.34,659.7,2.24746194]
[1751938374823,1.02739684,660.33,659.7,2.24746194]
[1751938375023,1.02739684,660.32,659.7,2.24746194]
[1751938375323,1.02739684,660.34,659.7,2.24746194]
[1751938375523,1.02739684,660.33,659.73,2.24746194]
[1751938375724,1.02739684,660.32,659.73,2.24746194]
[1751938375925,1.02739684,660.31,659.73,2.24746194]
[1751938376120,1.02739684,660.3,659.73,2.24746194]
[1751938376324,1.02739684,660.33,659.73,2.24746194]
[1751938376524,1.02739684,660.32,659.73,2.24746194]
[1751938376720,1.02739684,660.31,659.73,2.24746194]
[1751938377023,1.02739684,660.3,659.73,2.24746194]
[1751938377220,1.02739684,660.32,659.73,2.24746194]
[1751938377422,1.02739684,660.31,659.73,2.24746194]
[1751938377620,1.02739684,660.3,659.73,2.24746194]
[1751938377823,1.02739684,660.32,659.73,2.24746194]
[1751938378025,1.02739684,660.31,659.73,2.24746194]
[1751938378321,1.02739684,660.3,659.74,2.24746194]
[1751938378625,1.02739684,660.32,659.74,2.24746194]
[1751938378825,1.02739684,660.31,659.74,2.24746194]
[1751938379124,1.02739684,660.3,659.76,2.24746194]
[1751938379420,1.02739684,660.29,659.76,2.24746194]
[1751938379621,1.02739684,660.31,659.76,2.24746194]
[1751938379822,1.02739684,660.3,659.76,2.24746194]
[1751938380021,1.02739684,660.29,659.76,2.24746194]
[1751938380321,1.02739684,660.31,659.76,2.24746194]
[1751938380521,1.02739684,660.3,659.76,2.24746194]
[1751938380724,1.02739684,660.29,659.76,2.24746194]
[1751938380921,1.02739684,660.31,659.76,2.24746194]
[1751938381125,1.02739684,660.3,659.76,2.24746194]
[1751938381321,1.02739684,660.29,659.79,2.24746194]
[1751938381521,1.02739684,660.28,659.79,2.24746194]
[1751938381720,1.02739684,660.27,659.79,2.24746194]
[1751938382023,1.02739684,660.29,659.79,2.24746194]
[1751938382324,1.02739684,660.28,659.79,2.24746194]
[1751938382619,1.02739684,660.27,659.79,2.24746194]
[1751938382822,1.02739684,660.29,659.79,2.24746194]
[1751938383024,1.02739684,660.28,659.8,2.24746194]
[1751938383225,1.02739684,660.3,659.8,2.24746194]
[1751938383423,1.02739684,660.29,659.8,2.24746194]
[1751938383625,1.02739684,660.28,659.8,2.24746194]
[1751938383926,1.02739684,660.3,659.8,2.24746194]
[1751938384127,1.02739684,660.29,659.8,2.24746194]
[1751938384424,1.02790217,660.28,659.8,2.24746194]
[1751938384722,1.02790217,660.27,659.8,2.24746194]
[1751938384923,1.02790217,660.3,659.8,2.24746194]
[1751938385122,1.02790217,660.29,659.8,2.24746194]
[1751938385327,1.02790217,660.28,659.8,2.24746194]
[1751938385627,1.02790217,660.3,659.8,2.24746194]
[1751938385927,1.02790217,660.29,659.79,2.24746194]
[1751938386123,1.02790217,660.28,659.79,2.24746194]
[1751938386426,1.02790217,660.3,659.79,2.24746194]
[1751938386625,1.02790217,660.29,659.79,2.24746194]
[1751938386925,1.02790217,660.28,659.79,2.24746194]
[1751938387125,1.02790217,660.3,659.79,2.24746194]
[1751938387323,1.02790643,660.29,659.79,2.24746194]
[1751938387530,1.02790643,660.28,659.8,2.24746194]
[1751938387727,1.68992129,660.31,659.8,2.24746194]
[1751938387728,1.02790643,660.3,659.8,2.24746194]
[1751938387927,1.02790643,660.29,659.8,2.24746194]
[1751938388128,1.02790643,660.28,659.8,2.24746194]
[1751938388328,1.02790643,660.27,659.8,2.24746194]
[1751938388624,1.02790643,660.3,659.8,2.24746194]
[1751938388828,1.02790643,660.29,659.8,2.24746194]
[1751938389025,1.02790643,660.28,659.8,2.24746194]
[1751938389327,1.02790643,660.27,659.79,2.24746194]
[1751938389628,1.02790643,660.3,659.79,2.24746194]
[1751938389924,1.02790643,660.29,659.79,2.24746194]
[1751938390128,1.0279273,660.28,659.79,2.24746194]
[1751938390325,1.0279273,660.27,659.79,2.24746194]
[1751938390528,1.0279273,660.3,659.79,2.24746194]
[1751938390827,1.0279273,660.29,659.79,2.24746194]
[1751938391025,1.68992129,660.31,659.79,2.24746194]
[1751938391026,1.0279273,660.28,659.79,2.24746194]
[1751938391328,1.0279273,660.27,659.81,2.24746194]
[1751938391526,1.0279273,660.29,659.81,2.24746194]
[1751938391727,1.0279273,660.28,659.81,2.24746194]
[1751938391924,1.0279273,660.27,659.81,2.24746194]
[1751938392126,1.0279273,660.26,659.82,2.24746194]
[1751938392330,1.0279273,660.29,659.81,2.24746194]
[1751938392630,1.0279273,660.28,659.81,2.24746194]
[1751938392827,1.0279273,660.27,659.82,2.24746194]
[1751938393028,1.68992129,660.3,659.82,2.24746194]
[1751938393331,1.02794816,660.29,659.82,2.24746194]
[1751938393526,1.02794816,660.28,659.82,2.24746194]
[1751938393730,1.02794816,660.27,659.82,2.24746194]
[1751938393927,1.02794816,660.26,659.82,2.24746194]
[1751938394131,1.02794816,660.29,659.82,2.24746194]
[1751938394427,1.02794816,660.28,659.82,2.24746194]
[1751938394631,1.02794816,660.27,659.82,2.24746194]
[1751938394927,1.02794816,660.26,659.82,2.24746194]
[1751938395230,1.02794816,660.29,659.82,2.24746194]
[1751938395430,1.02794816,660.28,659.82,2.24746194]
[1751938395627,1.02794816,660.27,659.82,2.24746194]
[1751938395829,1.02794816,660.26,659.82,2.24746194]
[1751938396027,1.02794816,660.29,659.82,2.24746194]
[1751938396227,1.02794816,660.28,659.82,2.24746194]
[1751938396430,1.02794816,660.27,659.82,2.24746194]
[1751938396627,1.02794816,660.26,659.82,2.24746194]
[1751938396828,1.02794816,660.25,659.82,2.24746194]
[1751938397028,1.02794816,660.25,659.75,1.586]
[1751938397029,2.71786945,660.29,659.83,2.24746194]
[1751938397228,1.02794816,660.28,659.83,2.24746194]
[1751938397532,1.02794816,660.27,659.83,2.24746194]
[1751938397732,1.02794816,660.26,659.83,2.24746194]
[1751938397929,1.02794816,660.25,659.83,2.24746194]
[1751938398131,1.02794816,660.28,659.83,2.24746194]
[1751938398329,1.02794816,660.27,659.83,2.24746194]
[1751938398536,1.02794816,660.26,659.83,2.24746194]
[1751938398832,1.02794816,660.29,659.83,2.24746194]
[1751938399032,1.02794816,660.28,659.83,2.24746194]
[1751938399232,1.02794816,660.27,659.83,2.24746194]
[1751938399430,1.02794816,660.26,659.83,2.24746194]
[1751938399733,1.02794816,660.25,659.83,2.24746194]
[1751938399932,1.02794816,660.28,659.83,2.24746194]
[1751938400130,1.02794816,660.27,659.83,2.24746194]
[1751938400334,1.02794816,660.26,659.83,2.24746194]
[1751938400633,1.02794816,660.25,659.83,2.24746194]
[1751938400835,1.02794816,660.28,659.83,2.24746194]
[1751938401133,1.02794816,660.27,659.83,2.24746194]
[1751938401434,1.02794816,660.26,659.83,2.24746194]
[1751938401631,1.02794816,660.25,659.83,2.24746194]
[1751938401830,1.02794816,660.28,659.83,2.24746194]
[1751938402035,1.02794816,660.27,659.84,2.24746194]
[1751938402334,1.02794816,660.26,659.84,2.24746194]
[1751938402531,1.02794816,660.25,659.84,2.24746194]
[1751938402735,1.02794816,660.28,659.84,2.24746194]
[1751938402936,1.02794816,660.27,659.84,2.24746194]
[1751938403236,1.02794816,660.26,659.84,2.24746194]
[1751938403435,1.68992129,660.29,659.84,2.24746194]
[1751938403436,1.02794816,660.25,659.84,2.24746194]
[1751938403633,1.02794816,660.24,659.84,2.24746194]
[1751938403837,1.02794816,660.28,659.84,2.24746194]
[1751938404037,1.02794816,660.27,659.84,2.24746194]
[1751938404239,1.02794816,660.26,659.84,2.24746194]
[1751938404432,1.02794816,660.25,659.84,2.24746194]
[1751938404635,1.02794816,660.24,659.84,2.24746194]
[1751938404834,1.02794816,660.28,659.84,2.24746194]
[1751938405041,1.02794816,660.27,659.84,2.24746194]
[1751938405239,1.02794816,660.26,659.84,2.24746194]
[1751938405438,4.47325642,660.37,659.75,1.586]
[1751938405733,2.78333513,660.36,659.75,1.586]
[1751938405936,1.02794816,660.35,659.75,1.586]
[1751938406146,1.02794816,660.34,659.75,1.586]
[1751938406338,1.02794816,660.33,659.75,1.586]
[1751938406639,1.02794816,660.32,659.75,1.586]
[1751938406938,1.02794816,660.36,659.75,1.586]
[1751938407135,1.02794816,660.35,659.75,1.586]
[1751938407334,1.02794816,660.34,659.75,1.586]
[1751938407535,1.02794816,660.33,659.75,1.586]
[1751938407736,1.02794816,660.32,659.75,1.586]
[1751938407936,1.02794816,660.36,659.75,1.586]
[1751938408136,1.02794816,660.35,659.75,1.586]
[1751938408340,1.02794816,660.34,659.75,1.586]
[1751938408540,1.02794816,660.33,659.75,1.586]
[1751938408837,1.02794816,660.32,659.75,1.586]
[1751938409037,1.02794816,660.36,659.75,1.586]
[1751938409241,1.02794816,660.35,659.75,1.586]
[1751938409438,1.02794816,660.34,659.75,1.586]
[1751938409737,1.02794816,660.33,659.75,1.586]
[1751938409941,1.02794816,660.32,659.75,1.586]
[1751938410142,1.02794816,660.36,659.75,1.586]
[1751938410342,1.02794816,660.35,659.75,1.586]